Workbook

Sheet Template
A1: Show/Hide
A2: Actions
A4: Company Name: | E4: Status | F4: Helpful Websites
A5: Ticker | B5: =_FV(B4,"Ticker symbol",TRUE) -> TSCO | F5: SEC.gov | Company Search Page
A6: Valuation Date: | B6: 2021-01-10 | E6: Hold | F6: Dividend History | Payout Calendar, Announcements and Stock Information
A7: Valuation Period: | B7: 2019-12-28 | F7: https://finance.yahoo.com/?guccounter=1
A8: Current Price: | B8: =_FV(B4,"Price") -> 149.31 | F8: https://www.msn.com/en-us/money/markets/marketmovers
A9: Market Cap: | B9: =_FV(B4,"Market cap",TRUE) -> 17394230000
A11: Indicators | B11: Net-Net | C11: =IF(B54>B8, "Yes", "No") -> No | D11: Graham Value | E11: =IF(B55>B8, "Yes", "No") -> No | F11: DCF | G11: =IF(B98>B8, "Yes", "No") -> Yes
B13: =C13+1 -> 2019 | C13: 2018 | D13: 2017 | E13: 2016 | F13: 2015
A14: Stock Info
A15: Diluted Shares OS: | B15: 120743000 | C15: 123471000 | D15: 128204000 | E15: 133813000 | F15: 136845000
A16: Closing Share Price | B16: =_xlfn.XLOOKUP(DATE(B13+1,1,1), StockPrices[Date],StockPrices[Open]) -> 93.69 | C16: =_xlfn.XLOOKUP(DATE(C13+1,1,1), StockPrices[Date],StockPrices[Open]) -> 81.81 | D16: =_xlfn.XLOOKUP(DATE(D13+1,1,1), StockPrices[Date],StockPrices[Open]) -> 75.35 | E16: =_xlfn.XLOOKUP(DATE(E13+1,1,1), StockPrices[Date],StockPrices[Open]) -> 76.90 | F16: =_xlfn.XLOOKUP(DATE(F13+1,1,1), StockPrices[Date],StockPrices[Open]) -> 83.50
A17: EPDS | B17: 4.66 | C17: 4.31 | D17: 3.3 | E17: 3.27 | F17: 3
A19: Balance Sheet | B19: In Thousands | C19: =B19 -> In Thousands | D19: =C19 -> In Thousands | E19: =D19 -> In Thousands | F19: =E19 -> In Thousands
A20: Cash | B20: 84241 | C20: 86299 | D20: 109148 | E20: 53916 | F20: 63813
A21: Marketable Securities | B21: 0 | C21: 0 | D21: 0 | E21: 0 | F21: 0
A22: Accounts Receivable | B22: 0 | C22: 0 | D22: 0 | E22: 0 | F22: 0
A23: Inventory | B23: 1602781 | C23: 1589542 | D23: 1453208 | E23: 1369656 | F23: 1284375
A24: Current Assets | B24: 1787887 | C24: 1794399 | D24: 1655368 | E24: 1517809 | F24: 1439461
A25: Total Assets | B25: 5289268 | C25: 3085262 | D25: 2868769 | E25: 2674942 | F25: 2370826
A26: Current Liabilities | B26: 1247600 | C26: 938107 | D26: 849214 | E26: 777194 | F26: 671284
A27: Total Liabilities | B27: 3722145 | C27: 1523442 | D27: 1450096 | E27: 1221724 | F27: 977532
A29: Income Statement | B29: In Thousands | C29: =B29 -> In Thousands | D29: =C29 -> In Thousands | E29: =D29 -> In Thousands | F29: =E29 -> In Thousands
A30: Revenue | B30: 8351931 | C30: 7911046 | D30: 7256382 | E30: 6779579 | F30: 6226507
A31: Cost of Goods Sold | B31: 5480161 | C31: 5208518 | D31: 4764417 | E31: 4454377 | F31: 4083333
A32: Interest Expense | B32: 19843 | C32: 18352 | D32: 13859 | E32: 5810 | F32: 2891
A33: SG&A | B33: 1932572 | C33: 1823440 | D33: 1639749 | E33: 1488164 | F33: 1369097
A34: Net Income | B34: 562354 | C34: 532357 | D34: 422599 | E34: 437120 | F34: 410395
A36: Cash Flow | B36: In Thousands | C36: =B36 -> In Thousands | D36: =C36 -> In Thousands | E36: =D36 -> In Thousands | F36: =E36 -> In Thousands
A37: Operating Cash Flow | B37: 811716 | C37: 694394 | D37: 631450 | E37: 639040 | F37: 429180
A38: PPE Purchases | B38: 217450 | C38: 278530 | D38: 250401 | E38: 226017 | F38: 236496
A39: Debt Payments | B39: 3708 | C39: 3246 | D39: 2446 | E39: 1150 | F39: 507
A40: Dividends / Share | B40: =SUMIFS(Dividends[Close*],Dividends[Date],">="&DATE(Template!B13,1,1),Dividends[Date],"<="&DATE(Template!B13,12,31)) -> 1.36 | C40: =SUMIFS(Dividends[Close*],Dividends[Date],">="&DATE(Template!C13,1,1),Dividends[Date],"<="&DATE(Template!C13,12,31)) -> 1.2 | D40: =SUMIFS(Dividends[Close*],Dividends[Date],">="&DATE(Template!D13,1,1),Dividends[Date],"<="&DATE(Template!D13,12,31)) -> 1.05 | E40: =SUMIFS(Dividends[Close*],Dividends[Date],">="&DATE(Template!E13,1,1),Dividends[Date],"<="&DATE(Template!E13,12,31)) -> 0.92 | F40: =SUMIFS(Dividends[Close*],Dividends[Date],">="&DATE(Template!F13,1,1),Dividends[Date],"<="&DATE(Template!F13,12,31)) -> 0.76
A41: *** Make sure to refresh tables
A42: Ratios
A43: P/E | B43: =_xlfn.LET(_xlpm.mult,_xlfn.SWITCH(B29, "In Millions", 1000000, "In Thousands", 1000, 1), B16/((_xlpm.mult*B34)/B15)) -> 20.11617535 | C43: =_xlfn.LET(_xlpm.mult,_xlfn.SWITCH(C29, "In Millions", 1000000, "In Thousands", 1000, 1), C16/((_xlpm.mult*C34)/C15)) -> 18.97441474 | D43: =_xlfn.LET(_xlpm.mult,_xlfn.SWITCH(D29, "In Millions", 1000000, "In Thousands", 1000, 1), D16/((_xlpm.mult*D34)/D15)) -> 22.85895471 | E43: =_xlfn.LET(_xlpm.mult,_xlfn.SWITCH(E29, "In Millions", 1000000, "In Thousands", 1000, 1), E16/((_xlpm.mult*E34)/E15)) -> 23.54094917 | F43: =_xlfn.LET(_xlpm.mult,_xlfn.SWITCH(F29, "In Millions", 1000000, "In Thousands", 1000, 1), F16/((_xlpm.mult*F34)/F15)) -> 27.84282825
A44: Price / Book | B44: =B16/B49 -> 7.218585695 | C44: 6.467558688 | D44: 6.809300945 | E44: 7.080988331 | F44: 8.201110103
A45: Debt / Equity | B45: =B27/(B25-B27) -> 2.37514541 | C45: =C27/(C25-C27) -> 0.975427386 | D45: 1.022149572 | E45: 0.8407024961 | F45: 0.7015977963
A46: Current Ratio | B46: =B24/B26 -> 1.433061077 | C46: =C24/C26 -> 1.912787134 | D46: 1.949294289 | E46: 1.952934531 | F46: 2.144339803
A47: Return on Equity | B47: =_xlfn.LET(_xlpm.ni,_xlfn.SWITCH(B29, "In Millions", 1000000, "In Thousands", 1000, 1), _xlpm.eq,_xlfn.SWITCH(B19, "In Millions", 1000000, "In Thousands", 1000, 1), (_xlpm.ni*B34)/((B25-B27)*_xlpm.eq)) -> 0.3588448386 | C47: =_xlfn.LET(_xlpm.ni,_xlfn.SWITCH(C29, "In Millions", 1000000, "In Thousands", 1000, 1), _xlpm.eq,_xlfn.SWITCH(C19, "In Millions", 1000000, "In Thousands", 1000, 1), (_xlpm.ni*C34)/((C25-C27)*_xlpm.eq)) -> 0.3408568209 | D47: =_xlfn.LET(_xlpm.ni,_xlfn.SWITCH(D29, "In Millions", 1000000, "In Thousands", 1000, 1), _xlpm.eq,_xlfn.SWITCH(D19, "In Millions", 1000000, "In Thousands", 1000, 1), (_xlpm.ni*D34)/((D25-D27)*_xlpm.eq)) -> 0.2978833036 | E47: =_xlfn.LET(_xlpm.ni,_xlfn.SWITCH(E29, "In Millions", 1000000, "In Thousands", 1000, 1), _xlpm.eq,_xlfn.SWITCH(E19, "In Millions", 1000000, "In Thousands", 1000, 1), (_xlpm.ni*E34)/((E25-E27)*_xlpm.eq)) -> 0.3007945126 | F47: =_xlfn.LET(_xlpm.ni,_xlfn.SWITCH(F29, "In Millions", 1000000, "In Thousands", 1000, 1), _xlpm.eq,_xlfn.SWITCH(F19, "In Millions", 1000000, "In Thousands", 1000, 1), (_xlpm.ni*F34)/((F25-F27)*_xlpm.eq)) -> 0.2945501811
A48: Liquid Value / Share | B48: =_xlfn.LET(_xlpm.mult,_xlfn.SWITCH(B19, "In Millions", 1000000, "In Thousands", 1000, 1), (_xlpm.mult*B20+_xlpm.mult*B21)/B15) -> 0.6976884788 | C48: =_xlfn.LET(_xlpm.mult,_xlfn.SWITCH(C19, "In Millions", 1000000, "In Thousands", 1000, 1), (_xlpm.mult*C20+_xlpm.mult*C21)/C15) -> 0.6989414518 | D48: =_xlfn.LET(_xlpm.mult,_xlfn.SWITCH(D19, "In Millions", 1000000, "In Thousands", 1000, 1), (_xlpm.mult*D20+_xlpm.mult*D21)/D15) -> 0.851361892 | E48: =_xlfn.LET(_xlpm.mult,_xlfn.SWITCH(E19, "In Millions", 1000000, "In Thousands", 1000, 1), (_xlpm.mult*E20+_xlpm.mult*E21)/E15) -> 0.4029204935 | F48: =_xlfn.LET(_xlpm.mult,_xlfn.SWITCH(F19, "In Millions", 1000000, "In Thousands", 1000, 1), (_xlpm.mult*F20+_xlpm.mult*F21)/F15) -> 0.4663159049
A49: Book Value / Share | B49: =_xlfn.LET(_xlpm.mult,_xlfn.SWITCH(B19, "In Millions", 1000000, "In Thousands", 1000, 1),((B25-B27)*_xlpm.mult)/B15) -> 12.97899671 | C49: =_xlfn.LET(_xlpm.mult,_xlfn.SWITCH(C19, "In Millions", 1000000, "In Thousands", 1000, 1),((C25-C27)*_xlpm.mult)/C15) -> 12.64928607 | D49: =_xlfn.LET(_xlpm.mult,_xlfn.SWITCH(D19, "In Millions", 1000000, "In Thousands", 1000, 1),((D25-D27)*_xlpm.mult)/D15) -> 11.06574678 | E49: =_xlfn.LET(_xlpm.mult,_xlfn.SWITCH(E19, "In Millions", 1000000, "In Thousands", 1000, 1),((E25-E27)*_xlpm.mult)/E15) -> 10.86006591 | F49: =_xlfn.LET(_xlpm.mult,_xlfn.SWITCH(F19, "In Millions", 1000000, "In Thousands", 1000, 1),((F25-F27)*_xlpm.mult)/F15) -> 10.18154847
A50: Book Value Growth Y/Y | B50: =+(B49-C49)/C49 -> 0.02606555367 | C50: =+(C49-D49)/D49 -> 0.1431027946 | D50: =+(D49-E49)/E49 -> 0.01893919129 | E50: =+(E49-F49)/F49 -> 0.0666418716
A51: EPS Growth | B51: =+(B17-C17)/C17 -> 0.08120649652 | C51: =+(C17-D17)/D17 -> 0.3060606061 | D51: 0.009174311927 | E51: 0.09
A52: Interest / FCF | B52: =+B32/(B37-B38) -> 0.03339077114 | C52: 0.04412981167 | D52: 0.03637065049 | E52: 0.01406701322 | F52: 0.01500384048
A53: FCF Debt Coverage | B53: =(B37-B38)/B39 -> 160.2659115 | C53: 128.1158349 | D53: 155.7845462 | E53: 359.1504348 | F53: 380.0473373
A54: Net-Net Value / Share | B54: =_xlfn.LET(_xlpm.mult,_xlfn.SWITCH(B19, "In Millions", 1000000, "In Thousands", 1000, 1), (_xlpm.mult*(B20+B21+B22*0.75+B23*0.5-B27))/B15) -> -23.4921569 | C54: =_xlfn.LET(_xlpm.mult,_xlfn.SWITCH(C19, "In Millions", 1000000, "In Thousands", 1000, 1), (_xlpm.mult*(C20+C21+C22*0.75+C23*0.5-C27))/C15) -> -5.202614379 | D54: =_xlfn.LET(_xlpm.mult,_xlfn.SWITCH(D19, "In Millions", 1000000, "In Thousands", 1000, 1), (_xlpm.mult*(D20+D21+D22*0.75+D23*0.5-D27))/D15) -> -4.791925369 | E54: =_xlfn.LET(_xlpm.mult,_xlfn.SWITCH(E19, "In Millions", 1000000, "In Thousands", 1000, 1), (_xlpm.mult*(E20+E21+E22*0.75+E23*0.5-E27))/E15) -> -3.609365308 | F54: =_xlfn.LET(_xlpm.mult,_xlfn.SWITCH(F19, "In Millions", 1000000, "In Thousands", 1000, 1), (_xlpm.mult*(F20+F21+F22*0.75+F23*0.5-F27))/F15) -> -1.98422668
A55: Graham IV / Share | B55: =B17*(8.5+(2*B58*100)) -> 39.61 | C55: 36.635 | D55: 28.05 | E55: 27.795 | F55: 25.5
A57: Assumptions
A58: Expected Growth
A60: Valuations
A61: Net-Net Valuation
A62: Cash + Securities | B62: =+B20+B21 -> 84241 | C62: =+C20+C21 -> 86299 | D62: =+D20+D21 -> 109148 | E62: =+E20+E21 -> 53916 | F62: =+F20+F21 -> 63813
A63: + AR (75%) | B63: =+B22*0.75 -> 0 | C63: =+C22*0.75 -> 0 | D63: =+D22*0.75 -> 0 | E63: =+E22*0.75 -> 0 | F63: =+F22*0.75 -> 0
A64: + Inventory (50%) | B64: =+B23*0.5 -> 801390.5 | C64: =+C23*0.5 -> 794771 | D64: =+D23*0.5 -> 726604 | E64: =+E23*0.5 -> 684828 | F64: =+F23*0.5 -> 642187.5
A65: - Total Liabilities | B65: =-B27 -> -3722145 | C65: =-C27 -> -1523442 | D65: =-D27 -> -1450096 | E65: =-E27 -> -1221724 | F65: =-F27 -> -977532
A66: Net-Net Value | B66: =SUM(B62:B65) -> -2836513.5 | C66: =SUM(C62:C65) -> -642372 | D66: =SUM(D62:D65) -> -614344 | E66: =SUM(E62:E65) -> -482980 | F66: -271531.5
A67: Net-Net / Share | B67: =_xlfn.LET(_xlpm.mult,_xlfn.SWITCH(B19, "In Millions", 1000000, "In Thousands", 1000, 1), (_xlpm.mult*B66)/B15) -> -23.4921569 | C67: =_xlfn.LET(_xlpm.mult,_xlfn.SWITCH(C19, "In Millions", 1000000, "In Thousands", 1000, 1), (_xlpm.mult*C66)/C15) -> -5.202614379 | D67: =_xlfn.LET(_xlpm.mult,_xlfn.SWITCH(D19, "In Millions", 1000000, "In Thousands", 1000, 1), (_xlpm.mult*D66)/D15) -> -4.791925369 | E67: =_xlfn.LET(_xlpm.mult,_xlfn.SWITCH(E19, "In Millions", 1000000, "In Thousands", 1000, 1), (_xlpm.mult*E66)/E15) -> -3.609365308 | F67: =_xlfn.LET(_xlpm.mult,_xlfn.SWITCH(F19, "In Millions", 1000000, "In Thousands", 1000, 1), (_xlpm.mult*F66)/F15) -> -1.98422668
A68: Market Price Delta | B68: =+B67-B16 -> -117.1821569 | C68: =+C67-C16 -> -87.01261438 | D68: =+D67-D16 -> -80.14192537 | E68: =+E67-E16 -> -80.50936531 | F68: =+F67-F16 -> -85.48422668
A70: Graham Intrinsic Value
A71: EPS | B71: =B17 -> 4.66
A72: Expected Growth Rate | B72: =+B58 -> 0
A73: IV / Share | B73: =B71*(8.5+(2*B72*100)) -> 39.61
A74: Market Price Delta | B74: =+B73-B8 -> -109.7
A76: DCF Analysis | B76: FCF | C76: Dividend
A77: 10 Year Growth Rate | B77: 0.075 | C77: 0.05
A78: Terminal Growth Rate | B78: 0.01 | C78: 0.01
A79: Discount Rate | B79: 0.1 | C79: 0.1
A80: FCF / Share History | B80: =_xlfn.LET(_xlpm.mult,_xlfn.SWITCH(B36, "In Millions", 1000000, "In Thousands", 1000, 1), (_xlpm.mult*(B37-B38))/B15) -> 4.921742875 | C80: =_xlfn.LET(_xlpm.mult,_xlfn.SWITCH(C36, "In Millions", 1000000, "In Thousands", 1000, 1), (_xlpm.mult*(C37-C38))/C15) -> 3.36811073 | D80: =_xlfn.LET(_xlpm.mult,_xlfn.SWITCH(D36, "In Millions", 1000000, "In Thousands", 1000, 1), (_xlpm.mult*(D37-D38))/D15) -> 2.972208355 | E80: =_xlfn.LET(_xlpm.mult,_xlfn.SWITCH(E36, "In Millions", 1000000, "In Thousands", 1000, 1), (_xlpm.mult*(E37-E38))/E15) -> 3.08656857 | F80: =_xlfn.LET(_xlpm.mult,_xlfn.SWITCH(F36, "In Millions", 1000000, "In Thousands", 1000, 1), (_xlpm.mult*(F37-F38))/F15) -> 1.408045599
A81: FCF Growth Rate | B81: =(B80-C80)/C80 -> 0.461277039 | C81: 0.1332014205 | D81: -0.03705092291 | E81: =(E80-F80)/F80 -> 1.192094185
A82: Prior Year FCF | B82: =+B37-B38 -> 594266 | C82: =B36 -> In Thousands
A84: Year | B84: Cash Flow | C84: Discounted | E84: Dividend | F84: Discounted
A85: 1 | B85: =(B82*(1+$B$77)) -> 638835.95 | C85: =B85/((1+$B$79)^A85) -> 580759.9545 | E85: =(B40*(1+$C$77)) -> 1.428 | F85: =E85/((1+$C$79)^A85) -> 1.298181818
A86: =+A85+1 -> 2 | B86: =(B85*(1+$B$77)) -> 686748.6462 | C86: =B86/((1+$B$79)^A86) -> 567560.8647 | E86: =(E85*(1+$C$77)) -> 1.4994 | F86: =E86/((1+$C$79)^A86) -> 1.239173554
A87: =+A86+1 -> 3 | B87: =(B86*(1+$B$77)) -> 738254.7947 | C87: 554661.7541 | E87: =(E86*(1+$C$77)) -> 1.57437 | F87: 1.182847483
A88: =+A87+1 -> 4 | B88: 793623.9043 | C88: 542055.8052 | E88: 1.6530885 | F88: 1.129081688
A89: 5 | B89: 853145.6971 | C89: 529736.355 | E89: 1.735742925 | F89: 1.077759793
A90: 6 | B90: 917131.6244 | C90: 517696.8924 | E90: 1.822530071 | F90: 1.028770712
A91: 7 | B91: 985916.4963 | C91: 505931.054 | E91: 1.913656575 | F91: 0.9820084069
A92: 8 | B92: 1059860.233 | C92: 494432.6209 | E92: 2.009339404 | F92: 0.9373716611
A93: 9 | B93: 1139349.751 | C93: 483195.5159 | E93: 2.109806374 | F93: 0.8947638583
A94: 10 | B94: 1224800.982 | C94: 472213.7996 | E94: 2.215296692 | F94: 0.8540927739
A95: Terminal Cash Flow | C95: =(B94*(1+$B$78))/(B79-B78) -> 13744988.8 | F95: =(E94*(1+$C$78))/(C79-C78) -> 24.86055177
A97: Terminal Value | C97: =SUM(C85:C96) -> 18993233.42 | E97: Terminal Value | F97: =SUM(F85:F96) -> 35.48460352
A98: Total Value / Share | B98: =_xlfn.LET(_xlpm.mult,_xlfn.SWITCH(C82, "In Millions", 1000000, "In Thousands", 1000, 1), (_xlpm.mult*C97)/B15)+F97 -> 192.7875811
A99: Margin of Safety | B99: =(B98-B8)/B8 -> 0.2911900145

Sheet Dividends
A1: Close* | B1: Date
A2: 0.4 | B2: 2020-11-20
A3: 0.4 | B3: 2020-08-21
A4: 0.35 | B4: 2020-05-22
A5: 0.35 | B5: 2020-02-21
A6: 0.35 | B6: 2019-11-22
A7: 0.35 | B7: 2019-08-23
A8: 0.35 | B8: 2019-05-24
A9: 0.31 | B9: 2019-02-22
A10: 0.31 | B10: 2018-11-23
A11: 0.31 | B11: 2018-08-24
A12: 0.31 | B12: 2018-05-25
A13: 0.27 | B13: 2018-02-23
A14: 0.27 | B14: 2017-11-17
A15: 0.27 | B15: 2017-08-17
A16: 0.27 | B16: 2017-05-18
A17: 0.24 | B17: 2017-02-23
A18: 0.24 | B18: 2016-11-09
A19: 0.24 | B19: 2016-08-11
A20: 0.24 | B20: 2016-05-12
A21: 0.2 | B21: 2016-02-18
A22: 0.2 | B22: 2015-11-12
A23: 0.2 | B23: 2015-08-13
A24: 0.2 | B24: 2015-05-14
A25: 0.16 | B25: 2015-02-19
A26: 0.16 | B26: 2014-11-13

Sheet StockPrices
A1: Open | B1: Close* | C1: Date
A2: 147.16 | B2: 149.31 | C2: 2021-01-08
A3: 140.90 | B3: 149.31 | C3: 2021-01-01
A4: 140.85 | B4: 140.58 | C4: 2020-12-01
A5: 134.60 | B5: 140.81 | C5: 2020-10-31
A6: 143.71 | B6: 133.21 | C6: 2020-09-30
A7: 148.60 | B7: 143.34 | C7: 2020-08-31
A8: 143.75 | B8: 148.83 | C8: 2020-07-31
A9: 132.16 | B9: 142.74 | C9: 2020-06-30
A10: 122.05 | B10: 131.79 | C10: 2020-05-31
A11: 99.64 | B11: 122.02 | C11: 2020-04-30
A12: 82.70 | B12: 101.43 | C12: 2020-03-31
A13: 88.50 | B13: 84.55 | C13: 2020-03-01
A14: 93.98 | B14: 88.51 | C14: 2020-02-01
A15: 93.69 | B15: 92.95 | C15: 2020-01-01
A16: 94.90 | B16: 93.44 | C16: 2019-12-01
A17: 95.71 | B17: 94.44 | C17: 2019-10-31
A18: 91.81 | B18: 95.02 | C18: 2019-09-30
A19: 100.70 | B19: 90.44 | C19: 2019-08-31
A20: 109.04 | B20: 101.88 | C20: 2019-07-31
A21: 109.93 | B21: 108.81 | C21: 2019-06-30
A22: 100.71 | B22: 108.80 | C22: 2019-05-31
A23: 103.60 | B23: 100.78 | C23: 2019-04-30
A24: 98.16 | B24: 103.50 | C24: 2019-03-31
A25: 95.87 | B25: 97.76 | C25: 2019-03-01
A26: 85.97 | B26: 95.35 | C26: 2019-02-01
A27: 81.81 | B27: 85.40 | C27: 2019-01-01
A28: 95.83 | B28: 83.44 | C28: 2018-12-01
A29: 91.95 | B29: 95.13 | C29: 2018-10-31
A30: 91.34 | B30: 91.89 | C30: 2018-09-30
A31: 88.63 | B31: 90.88 | C31: 2018-08-31
A32: 78.23 | B32: 88.28 | C32: 2018-07-31
A33: 75.85 | B33: 78.04 | C33: 2018-06-30
A34: 74.83 | B34: 76.49 | C34: 2018-05-31
A35: 67.74 | B35: 74.31 | C35: 2018-04-30
A36: 62.55 | B36: 68.00 | C36: 2018-03-31
A37: 64.80 | B37: 63.02 | C37: 2018-03-01
A38: 72.00 | B38: 64.93 | C38: 2018-02-01
A39: 75.35 | B39: 76.25 | C39: 2018-01-01
A40: 68.53 | B40: 74.75 | C40: 2017-12-01
A41: 60.40 | B41: 68.24 | C41: 2017-10-31
A42: 61.99 | B42: 60.26 | C42: 2017-09-30
A43: 59.75 | B43: 63.29 | C43: 2017-08-31
A44: 56.40 | B44: 59.51 | C44: 2017-07-31
A45: 54.68 | B45: 56.12 | C45: 2017-06-30
A46: 55.37 | B46: 54.21 | C46: 2017-05-31
A47: 62.14 | B47: 55.15 | C47: 2017-04-30
A48: 68.93 | B48: 61.91 | C48: 2017-03-31
A49: 71.67 | B49: 68.97 | C49: 2017-03-01
A50: 73.27 | B50: 70.91 | C50: 2017-02-01
A51: 76.90 | B51: 73.67 | C51: 2017-01-01
A52: 75.24 | B52: 75.81 | C52: 2016-12-01
A53: 62.75 | B53: 75.07 | C53: 2016-10-31
A54: 67.02 | B54: 62.63 | C54: 2016-09-30
A55: 84.47 | B55: 67.35 | C55: 2016-08-31
A56: 91.29 | B56: 83.95 | C56: 2016-07-31
A57: 91.33 | B57: 91.65 | C57: 2016-06-30
A58: 96.07 | B58: 91.18 | C58: 2016-05-31
A59: 95.14 | B59: 96.10 | C59: 2016-04-30
A60: 90.38 | B60: 94.66 | C60: 2016-03-31
A61: 85.30 | B61: 90.46 | C61: 2016-03-01
A62: 87.45 | B62: 84.57 | C62: 2016-02-01
A63: 83.50 | B63: 88.31 | C63: 2016-01-01
A64: 89.80 | B64: 85.50 | C64: 2015-12-01
A65: 92.40 | B65: 89.35 | C65: 2015-10-31
A66: 84.40 | B66: 92.39 | C66: 2015-09-30
A67: 83.27 | B67: 84.32 | C67: 2015-08-31
A68: 92.75 | B68: 85.31 | C68: 2015-07-31
A69: 91.24 | B69: 92.52 | C69: 2015-06-30
A70: 87.54 | B70: 89.94 | C70: 2015-05-31
A71: 86.25 | B71: 87.14 | C71: 2015-04-30
A72: 84.88 | B72: 86.06 | C72: 2015-03-31
A73: 88.42 | B73: 85.06 | C73: 2015-03-01
A74: 81.12 | B74: 88.12 | C74: 2015-02-01
A75: 78.80 | B75: 81.17 | C75: 2015-01-01
A76: 76.69 | B76: 78.82 | C76: 2014-12-01

Sheet Lists (hidden)
A1: Denominations
A2: In Dollars
A3: In Thousands
A4: In Millions
